bitfinex/quotes_BTCUSD_20220204
["timestamp","ask_amount","ask_price","bid_price","bid_amount"]
[1643984382928,0.44473433,37724.0,37723.0,0.011304]
[1643984383275,0.0531,37724.0,37723.0,0.011304]
[1643984383772,0.198933,37725.0,37723.0,1.611304]
[1643984383971,0.5107,37741.0,37723.0,1.67759719]
[1643984383972,0.132587,37730.0,37723.0,1.67759719]
[1643984384175,0.34752548,37740.0,37729.0,1.36848027]
[1643984384374,0.29442548,37740.0,37733.0,0.05]
[1643984384573,0.066283,37735.0,37733.0,0.05]
[1643984384774,0.066283,37735.0,37729.0,1.45104542]
[1643984384973,0.37239889,37735.0,37733.0,0.06628223]
[1643984385176,0.066283,37735.0,37733.0,0.06628223]
[1643984386773,0.066283,37735.0,37734.0,1.0]
[1643984387027,0.132555,37741.0,37734.0,1.0]
[1643984387226,0.4087224,37751.0,37737.0,0.132537]
[1643984387227,0.066273,37740.0,37737.0,0.132537]
[1643984387427,0.3098932,37746.0,37739.0,0.6]
[1643984387631,0.3098932,37746.0,37741.0,0.16555829]
[1643984387830,0.001,37751.0,37739.0,0.17724426]
[1643984388026,0.210673,37750.0,37739.0,0.17724426]
[1643984388226,0.18180343,37754.0,37739.0,0.05]
[1643984388426,0.066264,37745.0,37742.0,0.13252797]
[1643984388930,0.210673,37752.0,37748.0,0.19628493]
[1643984389128,0.30165995,37749.0,37748.0,0.19628493]
[1643984389426,0.40165995,37749.0,37746.0,0.05]
[1643984389627,0.210673,37748.0,37747.0,0.13251421]
[1643984389828,0.210673,37748.0,37747.0,0.26503021]
[1643984390026,0.67859195,37749.0,37747.0,0.26503021]
[1643984390628,0.76037917,37749.0,37747.0,0.26503021]
[1643984390881,0.76037917,37749.0,37747.0,0.132516]
[1643984391082,0.54970617,37749.0,37747.0,0.132516]
[1643984391384,0.76037917,37749.0,37747.0,0.132516]
[1643984391584,0.210673,37749.0,37747.0,0.132516]
[1643984391783,0.1,37755.0,37747.0,0.132516]
[1643984391784,0.00884429,37759.0,37748.0,0.116251]
[1643984391984,0.00884429,37759.0,37755.0,0.11625]
[1643984391985,0.0021,37759.0,37755.0,0.11625]
[1643984392183,0.2018943,37759.0,37755.0,0.11625]
[1643984392987,0.2018943,37759.0,37756.0,0.06624214]
[1643984393584,0.04999999,37757.0,37754.0,0.32122184]
[1643984393784,0.04999999,37755.0,37754.0,0.32122184]
[1643984396722,0.3681433,37759.0,37754.0,0.32122184]
[1643984396923,0.04999999,37758.0,37754.0,0.32122184]
[1643984397122,0.2681433,37759.0,37754.0,0.32122184]
[1643984397322,0.2681433,37759.0,37755.0,0.066248]
[1643984397722,0.134604,37760.0,37755.0,0.11624799]
[1643984397925,0.134604,37760.0,37754.0,0.32122184]
[1643984397926,0.08484833,37759.0,37754.0,0.32122184]
[1643984398383,0.08484833,37759.0,37755.0,0.066251]
[1643984398582,0.15109733,37759.0,37755.0,0.066251]
[1643984399081,0.15109733,37759.0,37755.0,0.2200613]
[1643984400084,0.066249,37759.0,37754.0,0.12249542]
[1643984400383,0.066249,37759.0,37757.0,0.04999999]
[1643984400585,0.066249,37759.0,37756.0,0.066244]
[1643984400787,0.210673,37758.0,37756.0,0.066244]
[1643984401585,0.29463322,37758.0,37756.0,0.066244]
[1643984405877,0.29431422,37758.0,37756.0,0.066244]
[1643984406876,0.58207558,37758.0,37756.0,0.066244]
[1643984407074,0.29431422,37758.0,37756.0,0.066244]
[1643984407275,0.39431422,37758.0,37756.0,0.066244]
[1643984409521,0.29431422,37758.0,37756.0,0.066244]
[1643984409721,0.39431422,37758.0,37756.0,0.066244]
[1643984409923,0.34283006,37757.0,37756.0,0.066244]
[1643984410124,0.263471,37757.0,37756.0,0.066244]
[1643984410321,0.363471,37757.0,37756.0,0.066244]
[1643984411123,0.363471,37757.0,37756.0,0.116244]
[1643984411323,0.263471,37757.0,37756.0,0.116244]
[1643984411526,0.363471,37757.0,37756.0,0.116244]
[1643984411724,0.363471,37757.0,37756.0,0.106244]
[1643984411725,0.1531,37757.0,37756.0,0.106244]
[1643984412127,0.47419803,37757.0,37756.0,0.106244]
[1643984412323,0.1531,37757.0,37756.0,0.106244]
[1643984412724,0.0531,37757.0,37756.0,0.106244]
[1643984413774,0.0431,37757.0,37756.0,0.106244]
[1643984414470,0.253471,37757.0,37756.0,0.106244]
[1643984414770,0.0431,37757.0,37756.0,0.106244]
[1643984416774,0.0431,37757.0,37743.0,0.84089999]
[1643984416775,0.96771036,37757.0,37743.0,0.84089999]
[1643984417025,0.066274,37756.0,37743.0,0.7909]
[1643984417224,0.066274,37756.0,37744.0,0.19795523]
[1643984417225,0.263471,37755.0,37744.0,0.19795523]
[1643984417425,0.263471,37755.0,37751.0,0.066274]
[1643984417623,0.22638121,37752.0,37751.0,0.066274]
[1643984417824,0.22638121,37752.0,37744.0,0.50254236]
[1643984417825,0.27948121,37752.0,37744.0,0.43627236]
[1643984418023,0.0531,37752.0,37749.0,0.04999999]
[1643984418227,0.0531,37752.0,37751.0,0.04999999]
[1643984418228,0.185621,37752.0,37751.0,0.04999999]
[1643984418528,0.1,37755.0,37751.0,0.11627399]
[1643984418730,0.5072,37757.0,37754.0,0.04999999]
[1643984418926,0.320091,37757.0,37756.0,0.23331746]
[1643984419127,0.210371,37757.0,37756.0,0.5930468]
[1643984419326,0.2418617,37763.0,37756.0,0.59304681]
[1643984419526,0.263471,37762.0,37758.0,0.066248]
[1643984420531,0.4,37760.0,37758.0,0.066248]
[1643984420788,0.263471,37759.0,37758.0,0.0500074]
[1643984421177,0.163471,37759.0,37758.0,0.03173224]
[1643984425825,0.163471,37759.0,37756.0,0.182396]
[1643984426027,0.4,37757.0,37756.0,0.182396]
[1643984426228,0.4531,37757.0,37756.0,0.132496]
[1643984426429,0.25429192,37756.0,37752.0,0.198739]
[1643984426640,0.0531,37755.0,37752.0,0.198739]
[1643984426828,0.110371,37754.0,37752.0,0.198739]
[1643984427028,0.0531,37753.0,37752.0,0.198739]
[1643984427227,0.163471,37753.0,37752.0,0.198739]
[1643984427628,0.163471,37753.0,37752.0,0.248739]
[1643984430691,0.176641,37752.0,37748.0,0.05]
[1643984430893,0.0531,37751.0,37745.0,0.04999999]
[1643984431094,0.110371,37750.0,37749.0,0.04999999]
[1643984431293,0.110371,37750.0,37744.0,0.373526]
[1643984431294,0.163471,37750.0,37747.0,0.132542]
[1643984431495,0.0531,37750.0,37749.0,0.04999999]
[1643984432419,0.0531,37750.0,37748.0,0.1]
[1643984432420,0.31597365,37750.0,37748.0,0.1]
[1643984432821,0.1531,37750.0,37748.0,0.1]
[1643984433221,0.110371,37749.0,37748.0,0.1]
[1643984433421,0.1531,37750.0,37748.0,0.1]
[1643984433621,0.110371,37749.0,37748.0,0.1]
[1643984433821,0.0531,37750.0,37748.0,0.1]
[1643984434022,0.163471,37750.0,37748.0,0.1]
[1643984435428,0.163471,37750.0,37747.0,0.132542]
[1643984435628,0.61804062,37750.0,37747.0,0.132542]
[1643984435878,0.45456962,37749.0,37746.0,0.06627]
[1643984436077,0.68433062,37748.0,37738.0,0.05018388]
[1643984436281,0.78433062,37748.0,37743.0,0.19514425]
[1643984436480,0.329761,37748.0,37742.0,0.25448115]
[1643984436778,0.25236425,37747.0,37743.0,0.198811]
[1643984436982,0.163471,37746.0,37743.0,0.248811]
[1643984437179,0.163471,37746.0,37744.0,0.066289]
[1643984437378,0.598886,37745.0,37735.0,0.00018388]
[1643984437679,0.0531,37744.0,37738.0,0.13276788]
[1643984437877,0.0531,37744.0,37738.0,0.132584]
[1643984437878,0.110371,37743.0,37738.0,0.132584]
[1643984438078,0.0531,37742.0,37738.0,0.127584]
[1643984438277,0.0531,37741.0,37740.0,0.22582927]
[1643984438678,0.198858,37742.0,37740.0,0.22582927]
[1643984438878,0.0531,37741.0,37740.0,0.22582927]
[1643984439078,0.0531,37741.0,37740.0,0.34211027]
[1643984439279,0.0531,37741.0,37740.0,0.38211027]
[1643984439528,0.0531,37741.0,37740.0,0.44839627]
[1643984440724,0.0531,37741.0,37740.0,0.49839626]
[1643984441935,0.198858,37742.0,37740.0,0.49839626]
[1643984442233,0.599,37754.0,37745.0,0.066258]
[1643984442431,0.599,37754.0,37753.0,0.04999999]
[1643984442432,0.0918,37754.0,37753.0,0.04999999]
[1643984442629,0.23874062,37754.0,37751.0,0.0435636]
[1643984442927,0.23874062,37754.0,37744.0,1.06887728]
[1643984442928,0.03656962,37753.0,37749.0,0.0435636]
[1643984443126,0.39772272,37751.0,37750.0,0.05]
[1643984443371,0.39772272,37751.0,37750.0,0.0935636]
[1643984443570,0.03656962,37751.0,37750.0,0.2923256]
[1643984443777,0.03656962,37751.0,37750.0,0.293762]
[1643984443778,0.39300601,37751.0,37750.0,0.293762]
[1643984443975,0.44610601,37751.0,37744.0,0.987643]
[1643984444174,0.21322262,37750.0,37746.0,0.1456605]
[1643984444373,0.04300601,37749.0,37746.0,0.1456605]
[1643984444572,0.03656962,37748.0,37746.0,0.1456605]
[1643984444777,0.03656962,37748.0,37746.0,0.38183417]
[1643984445073,0.00643639,37747.0,37745.0,0.06627719]
[1643984445273,0.00643639,37747.0,37746.0,0.16628]
[1643984445672,0.09649282,37747.0,37746.0,0.16628]
[1643984445873,0.09649282,37747.0,37746.0,0.33752557]
[1643984446074,0.39774902,37748.0,37746.0,0.23752557]
[1643984446273,0.46401102,37747.0,37746.0,0.1435636]
[1643984446473,0.066262,37747.0,37746.0,0.1435636]
[1643984446673,0.46401102,37747.0,37746.0,0.0935636]
[1643984446872,0.46401102,37747.0,37746.0,0.1435636]
[1643984447123,0.46401102,37747.0,37746.0,0.36885311]
[1643984447426,0.46401102,37747.0,37746.0,0.56427023]
[1643984448325,0.09467436,37747.0,37746.0,0.56427023]
[1643984449323,0.09467436,37747.0,37746.0,0.1]
[1643984449524,0.10111075,37747.0,37746.0,0.1]
[1643984450126,0.09467436,37747.0,37746.0,0.1]
[1643984450424,0.10111075,37747.0,37746.0,0.1]
[1643984451072,0.09467436,37747.0,37746.0,0.1]
[1643984451475,0.09467436,37747.0,37746.0,0.6435636]
[1643984451675,0.066262,37747.0,37746.0,0.6435636]
[1643984451874,0.39779353,37749.0,37746.0,0.6435636]
[1643984452072,0.39779353,37749.0,37748.0,0.4435636]
[1643984452272,0.39779353,37749.0,37748.0,0.5435636]
[1643984452472,0.39779353,37749.0,37748.0,0.1435636]
[1643984453272,0.3974746,37749.0,37748.0,0.1435636]
[1643984453672,0.34094339,37749.0,37748.0,0.1435636]
[1643984453873,0.34094339,37749.0,37748.0,0.2760726]
[1643984454273,0.066256,37751.0,37749.0,0.25620472]
[1643984454526,0.066256,37751.0,37750.0,0.0435636]
[1643984454926,0.13039497,37751.0,37750.0,0.0435636]
[1643984455727,0.13039816,37751.0,37750.0,0.0435636]
[1643984456228,0.066256,37751.0,37750.0,0.0935636]
[1643984456629,0.13251,37754.0,37751.0,0.466252]
[1643984456828,0.10643639,37759.0,37758.0,0.1040936]
[1643984457029,0.28094389,37759.0,37758.0,0.3944918]
[1643984457228,0.07057289,37759.0,37758.0,0.36389636]
[1643984457930,0.07057289,37759.0,37758.0,0.56510239]
[1643984458127,0.07057289,37759.0,37758.0,0.36389636]
[1643984458378,0.13681589,37759.0,37758.0,0.36389636]
[1643984458684,0.0022,37764.0,37759.0,0.9]
[1643984458882,0.001,37765.0,37763.0,0.04999999]
[1643984459278,0.001,37765.0,37764.0,0.14497831]
[1643984459479,0.001,37765.0,37764.0,0.95770756]
[1643984459678,0.001,37765.0,37764.0,1.00770756]
[1643984459878,0.0011,37769.0,37765.0,0.6]
[1643984460181,0.0033,37772.0,37770.0,0.23506172]
[1643984460377,0.0033,37773.0,37770.0,0.28506171]
[1643984460591,0.6051919,37779.0,37774.0,1.05]
[1643984460784,0.0022,37787.0,37774.0,1.05]
[1643984460785,0.066197,37792.0,37778.0,0.04999999]
[1643984460985,0.28370609,37794.0,37791.0,0.04999999]
[1643984461184,0.00041,37796.0,37793.0,0.03601734]
[1643984461386,0.00041,37796.0,37795.0,0.48519244]
[1643984461586,0.0003697,37796.0,37795.0,0.20110968]
[1643984461788,0.00080417,37797.0,37796.0,0.08609072]
[1643984462028,0.00080417,37797.0,37796.0,0.13609072]
[1643984462628,0.00080417,37797.0,37796.0,0.38890458]
[1643984462827,0.0103697,37799.0,37797.0,1.35]
[1643984463028,0.0003697,37802.0,37798.0,0.03601734]
[1643984463232,0.01398265,37799.0,37798.0,0.03601734]
[1643984463430,0.0008035,37799.0,37797.0,0.198495]
[1643984463628,0.0008035,37798.0,37797.0,0.23451234]
[1643984463827,0.0008035,37798.0,37797.0,0.43300734]
[1643984463828,0.01501466,37798.0,37797.0,0.43300734]
[1643984464029,0.00022851,37798.0,37797.0,0.39699]
[1643984464229,0.01421116,37798.0,37797.0,0.39699]
[1643984464432,0.01421116,37798.0,37795.0,0.066178]
[1643984464630,0.01398265,37796.0,37794.0,0.7561]
[1643984464829,0.960371,37795.0,37794.0,0.7561]
[1643984465031,0.8569728,37795.0,37788.0,0.7798]
[1643984465230,0.110371,37794.0,37791.0,0.26407727]
[1643984465530,0.00022851,37794.0,37792.0,0.03601734]
[1643984465793,0.00022851,37794.0,37793.0,0.03601734]
[1643984465983,0.00022851,37794.0,37791.0,0.3635404]
[1643984465984,0.01421116,37794.0,37791.0,0.3635404]
[1643984466183,0.00022851,37794.0,37791.0,0.3635404]
[1643984466584,0.06641051,37794.0,37791.0,0.5459094]
[1643984466782,0.06641051,37794.0,37791.0,0.5959094]
[1643984467185,0.06641051,37794.0,37791.0,0.4635404]
[1643984467387,0.06641051,37794.0,37791.0,0.19946313]
[1643984467686,0.08039316,37794.0,37789.0,0.05]
[1643984467887,0.08039316,37794.0,37788.0,0.7798]
[1643984467888,0.110371,37792.0,37788.0,0.7798]
[1643984468088,0.71398265,37789.0,37788.0,0.7798]
[1643984468293,0.066202,37788.0,37782.0,0.03601734]
[1643984468492,0.46398265,37783.0,37782.0,0.03601734]
[1643984468689,0.46398265,37783.0,37779.0,0.03601734]
[1643984468690,0.46421116,37783.0,37779.0,0.03601734]
[1643984468889,0.46421116,37783.0,37778.0,0.919904]
[1643984469088,0.01458086,37783.0,37778.0,0.986106]
[1643984469289,0.01458086,37783.0,37778.0,0.919904]
[1643984469529,0.066205,37782.0,37778.0,0.914904]
[1643984469729,0.01398265,37779.0,37776.0,0.53601734]
[1643984469932,0.01398265,37777.0,37776.0,0.5]
[1643984470129,0.01421116,37777.0,37776.0,0.5]
[1643984470629,0.00022851,37777.0,37776.0,0.5]
[1643984470832,0.00022851,37777.0,37776.0,0.6]
[1643984471029,0.01421116,37777.0,37776.0,0.55]
[1643984471230,0.00022851,37777.0,37776.0,0.6]
[1643984471430,0.01421116,37777.0,37776.0,0.6]
[1643984471828,0.23864159,37777.0,37776.0,0.5]
[1643984472030,0.29174159,37777.0,37776.0,0.5]
[1643984472432,0.82211259,37777.0,37776.0,0.5]
[1643984472831,0.92211259,37777.0,37776.0,0.5]
[1643984473032,0.92211259,37777.0,37776.0,0.55]
[1643984473277,0.50211259,37777.0,37776.0,0.05]
[1643984473475,0.50211259,37777.0,37771.0,0.066221]
[1643984473672,0.37812864,37777.0,37771.0,0.066221]
[1643984473873,0.01398265,37772.0,37771.0,0.066221]
[1643984474072,0.06731116,37772.0,37770.0,0.7893]
[1643984474274,0.06731116,37772.0,37769.0,0.1748926]
[1643984474672,0.05332851,37772.0,37769.0,0.2248926]
[1643984474872,0.01398265,37770.0,37769.0,0.1]
[1643984475073,0.06731116,37770.0,37767.0,0.116221]
[1643984475274,0.066222,37769.0,37767.0,0.166221]
[1643984475471,0.11955051,37769.0,37767.0,0.166221]
[1643984475674,0.11955051,37769.0,37767.0,0.1]
[1643984475982,0.11955051,37769.0,37768.0,1.28601734]
[1643984476173,0.11955051,37769.0,37768.0,0.13601734]
[1643984476372,0.05332851,37769.0,37768.0,0.21965577]
[1643984476573,0.05332851,37769.0,37768.0,0.58601734]
[1643984477222,0.05332851,37769.0,37768.0,0.13601734]
[1643984477624,0.05332851,37769.0,37768.0,0.52999248]
[1643984477824,0.05332851,37769.0,37768.0,0.22999248]
[1643984478426,0.05332851,37769.0,37768.0,0.13601734]
[1643984478629,0.05332851,37769.0,37768.0,1.23601734]
[1643984478826,0.05332851,37769.0,37768.0,0.1]
[1643984479127,0.05332851,37769.0,37763.0,0.7634]
[1643984479328,0.01398265,37764.0,37763.0,0.7634]
[1643984479526,0.06731116,37764.0,37763.0,0.7634]
[1643984479725,0.06731116,37764.0,37759.0,0.03601734]
[1643984479726,0.10444397,37761.0,37759.0,0.03601734]
[1643984479926,0.10444397,37761.0,37755.0,0.27171734]
[1643984479927,0.06708265,37760.0,37755.0,0.27171734]
[1643984480126,0.06708265,37760.0,37753.0,0.552474]
[1643984480127,0.24611008,37757.0,37753.0,0.45601734]
[1643984480329,0.24611008,37757.0,37753.0,0.57447533]
[1643984480330,0.01398265,37755.0,37753.0,0.57447533]
[1643984480530,0.0531,37754.0,37753.0,0.46999999]
[1643984480788,0.05332851,37754.0,37753.0,0.04999999]
[1643984481179,0.09324217,37752.0,37751.0,0.01]
[1643984481374,0.09347068,37752.0,37751.0,0.01]
[1643984482377,0.14657068,37752.0,37751.0,0.01]
[1643984482675,0.05332851,37752.0,37751.0,0.01]
[1643984483078,0.05332851,37752.0,37751.0,0.05999999]
[1643984483277,2.851e-05,37752.0,37751.0,2.05999999]
[1643984483477,0.6636697,37771.0,37752.0,1.95]
[1643984483478,0.066233,37762.0,37752.0,1.95]
[1643984483681,0.28617314,37763.0,37752.0,1.95]
[1643984483682,0.0531,37763.0,37761.0,0.04999999]
[1643984484280,0.0003697,37772.0,37761.0,0.14999999]
[1643984484529,0.1,37776.0,37761.0,0.14999999]
[1643984484530,0.22415446,37771.0,37767.0,0.132426]
[1643984484727,0.22378476,37771.0,37770.0,0.14999999]
[1643984484927,0.22378476,37771.0,37770.0,0.1]
[1643984485125,0.22378476,37771.0,37770.0,0.05]
[1643984485325,0.22378476,37771.0,37770.0,0.1]
[1643984485526,0.0003697,37775.0,37770.0,0.1]
[1643984485527,0.0003697,37775.0,37770.0,0.09999999]
[1643984485727,0.08922594,37776.0,37774.0,0.04999999]
[1643984485728,0.0003697,37776.0,37774.0,0.04999999]
[1643984485927,0.0003697,37775.0,37774.0,0.04999999]
[1643984486125,0.001,37777.0,37774.0,0.04999999]
[1643984486332,0.001,37777.0,37776.0,0.04999999]
[1643984486533,0.0003697,37780.0,37778.0,0.38290535]
[1643984486729,0.10022,37792.0,37779.0,0.94999999]
[1643984486927,0.10022,37792.0,37779.0,1.23438108]
[1643984486928,0.00037046,37785.0,37779.0,1.23438108]
[1643984487128,0.10059046,37792.0,37784.0,0.34999999]
[1643984487328,0.00037046,37791.0,37787.0,0.04999999]
[1643984487529,0.10059046,37792.0,37787.0,0.04999999]
[1643984487728,0.34888993,37789.0,37786.0,0.066184]
[1643984487927,0.41508193,37789.0,37784.0,0.532365]
[1643984488126,0.41508193,37789.0,37784.0,0.4]
[1643984488573,0.41545239,37789.0,37784.0,0.4]
[1643984488775,0.41508193,37789.0,37784.0,0.4]
[1643984488977,0.41508193,37789.0,37784.0,0.05]
[1643984489175,0.41545239,37789.0,37781.0,0.045]
[1643984489377,0.110371,37788.0,37783.0,0.05]
[1643984489774,0.17694446,37788.0,37778.0,0.05]
[1643984489975,0.17694446,37788.0,37777.0,0.18990304]
[1643984489976,0.06657346,37788.0,37777.0,0.23990304]
[1643984490277,0.09776203,37781.0,37777.0,0.51054554]
[1643984490477,0.09776203,37781.0,37779.0,0.04999999]
[1643984490675,0.09813249,37781.0,37779.0,0.04999999]
[1643984490877,0.27418045,37782.0,37779.0,0.066193]
[1643984491480,0.27418045,37782.0,37779.0,0.116193]
[1643984491879,0.00037046,37785.0,37781.0,0.04999999]
[1643984492130,0.07878383,37788.0,37781.0,0.04999999]
[1643984492331,0.00037046,37787.0,37781.0,0.04999999]
[1643984492531,0.07878383,37788.0,37785.0,0.04999999]
[1643984492732,0.00037046,37787.0,37785.0,0.04999999]
[1643984492933,0.07878383,37788.0,37785.0,0.04999999]
[1643984493133,0.07878383,37788.0,37785.0,0.14999999]
[1643984493134,0.07915429,37788.0,37785.0,0.14999999]
[1643984493333,0.07878383,37788.0,37785.0,0.14999999]
[1643984493535,0.07878383,37788.0,37785.0,0.1]
[1643984493734,0.07878383,37788.0,37785.0,0.05]
[1643984493934,0.07878383,37788.0,37784.0,0.05]
[1643984494139,0.07915429,37788.0,37784.0,0.05]
[1643984494336,0.07915429,37788.0,37781.0,0.09999999]
[1643984494537,0.07915429,37788.0,37784.0,0.04999999]
[1643984494737,0.07915429,37788.0,37782.0,0.116193]
[1643984495140,0.26983554,37783.0,37782.0,0.066193]
[1643984495340,0.26983554,37783.0,37779.0,0.132388]
[1643984495977,0.26983554,37783.0,37777.0,0.18990304]
[1643984496176,0.08064777,37782.0,37775.0,0.132405]
[1643984496378,0.08101823,37782.0,37775.0,0.132405]
[1643984496779,0.13411823,37782.0,37775.0,0.132405]
[1643984496978,0.26654423,37782.0,37774.0,0.7838]
[1643984497177,0.26654423,37782.0,37775.0,0.20084508]
[1643984497377,0.08503501,37776.0,37775.0,0.20084508]
[1643984497578,0.08503501,37776.0,37774.0,0.7838]
[1643984497778,0.08503501,37776.0,37772.0,0.04999999]
[1643984498180,0.08540547,37776.0,37772.0,0.04999999]
[1643984498378,0.0531,37775.0,37772.0,0.04999999]
[1643984498579,0.0531,37775.0,37772.0,0.24317303]
[1643984498879,0.0531,37775.0,37772.0,0.04999999]
[1643984499526,0.0531,37775.0,37771.0,0.1]
[1643984499829,0.0531,37775.0,37754.0,0.921221]
[1643984499830,0.110371,37773.0,37762.0,0.05]
[1643984500026,0.0531,37772.0,37762.0,0.05]
[1643984500226,0.22715969,37767.0,37759.0,0.7708]
[1643984500428,0.0531,37766.0,37761.0,0.0938727]
[1643984500626,0.0531,37766.0,37764.0,0.04999999]
[1643984500830,0.0531,37766.0,37763.0,0.1901045]
[1643984501625,0.0531,37766.0,37764.0,0.04999999]
[1643984501829,0.34337295,37766.0,37759.0,0.8708]
[1643984502026,0.29964016,37765.0,37759.0,0.8708]
[1643984502226,0.06625,37763.0,37759.0,0.8708]
[1643984502426,0.09227953,37761.0,37759.0,0.8708]
[1643984502728,0.09227953,37761.0,37760.0,0.05]
[1643984502926,0.68261943,37761.0,37755.0,0.28885275]
[1643984503126,0.57224843,37761.0,37755.0,0.28885275]
[1643984503376,0.57224843,37761.0,37755.0,0.1]
[1643984503577,0.110371,37760.0,37755.0,0.1]
[1643984503778,0.110371,37760.0,37754.0,0.05]
[1643984503779,0.066253,37759.0,37754.0,0.05]
[1643984503976,0.38474294,37758.0,37751.0,0.11]
[1643984504176,0.38474294,37758.0,37751.0,0.01]
[1643984504379,0.132521,37756.0,37751.0,0.01]
[1643984504575,0.72018939,37755.0,37751.0,0.01]
[1643984505176,0.066259,37754.0,37751.0,0.01]
[1643984505479,0.0531,37753.0,37751.0,0.19251299]
[1643984505674,0.0531,37752.0,37751.0,0.208773]
[1643984505874,0.0531,37752.0,37751.0,0.258773]
[1643984506074,0.0531,37752.0,37751.0,0.308773]
[1643984506674,0.0531,37752.0,37751.0,0.298773]
[1643984507334,0.0531,37752.0,37751.0,0.948773]
[1643984507535,0.0531,37752.0,37751.0,0.938773]
[1643984508334,0.26845766,37755.0,37752.0,0.5]
[1643984508936,0.3529608,37758.0,37752.0,0.5]
[1643984509235,0.0531,37757.0,37753.0,0.066248]
[1643984509838,0.0531,37757.0,37756.0,0.04999999]
[1643984510038,0.0531,37757.0,37756.0,0.61623975]
[1643984510240,0.110371,37768.0,37756.0,0.66623975]
[1643984510441,0.29746818,37767.0,37759.0,0.066241]
[1643984510639,0.0531,37766.0,37759.0,0.066241]
[1643984510886,0.28104216,37765.0,37759.0,0.066241]
[1643984511083,0.0531,37764.0,37759.0,0.116241]
[1643984511287,0.185594,37764.0,37759.0,0.182481]
[1643984511783,0.185594,37764.0,37760.0,0.14369885]
[1643984511987,0.27182486,37761.0,37760.0,0.14369885]
[1643984512184,0.32492486,37761.0,37760.0,0.05]
[1643984512384,0.42492486,37761.0,37760.0,0.05]
[1643984512584,0.42492486,37761.0,37759.0,0.182481]
[1643984512585,0.42492486,37761.0,37759.0,0.232481]
[1643984512884,0.42492486,37761.0,37759.0,0.16624]
[1643984513385,0.110371,37760.0,37759.0,0.16624]
[1643984513584,0.44630331,37760.0,37759.0,0.16624]
[1643984513985,0.44630331,37760.0,37759.0,0.1]
[1643984514186,0.44630331,37760.0,37759.0,0.05]
[1643984514386,0.33593231,37760.0,37758.0,0.05]
[1643984514659,0.47420675,37759.0,37751.0,0.142514]
[1643984514846,0.47420675,37759.0,37751.0,0.01]
[1643984514847,0.0531,37758.0,37751.0,0.01]
[1643984515044,0.08931101,37756.0,37751.0,0.01]
[1643984515245,0.36202557,37755.0,37751.0,0.01]
[1643984515444,0.24750254,37754.0,37751.0,0.01]
[1643984515645,0.0531,37753.0,37751.0,0.01]
[1643984516244,0.0531,37753.0,37751.0,0.06]
[1643984518382,0.27923331,37752.0,37751.0,0.06]
[1643984518581,0.0531,37753.0,37751.0,0.06]
[1643984518983,0.2847815,37752.0,37751.0,0.06]
[1643984519183,0.3378815,37752.0,37751.0,0.06]
[1643984519384,0.0531,37752.0,37751.0,0.06]
[1643984519983,0.0531,37752.0,37748.0,0.8912]
[1643984519984,0.3458168,37752.0,37748.0,0.8912]
[1643984520284,0.4458168,37752.0,37748.0,0.7912]
[1643984520683,0.066272,37750.0,37745.0,0.04999999]
[1643984520883,0.44809336,37749.0,37745.0,0.04999999]
[1643984521082,0.33772236,37749.0,37745.0,0.04999999]
[1643984521288,0.132543,37748.0,37745.0,0.04999999]
[1643984521489,0.0531,37747.0,37745.0,0.04999999]
[1643984522142,0.36893877,37746.0,37745.0,0.04999999]
[1643984522345,0.44426345,37746.0,37745.0,0.04999999]
[1643984523544,0.44426345,37746.0,37742.0,0.04999999]
[1643984523545,0.54736344,37746.0,37742.0,0.04999999]
[1643984523745,0.04999999,37743.0,37741.0,0.01]
[1643984523943,0.066272,37743.0,37742.0,0.04999999]
[1643984524745,0.36124805,37743.0,37741.0,0.01]
[1643984524952,0.36268287,37742.0,37735.0,0.00018388]
[1643984525149,0.36268287,37742.0,37734.0,0.74368388]
[1643984525349,0.08654358,37735.0,37734.0,0.74368388]
[1643984525549,0.08654358,37735.0,37732.0,0.00018388]
[1643984525550,0.15283458,37735.0,37732.0,0.00018388]
[1643984525796,0.15283458,37735.0,37731.0,0.01018388]
[1643984525986,0.15283458,37735.0,37732.0,0.00018388]
[1643984526186,0.15283458,37735.0,37731.0,0.01]
[1643984526388,0.43348757,37735.0,37731.0,0.01]
[1643984526588,0.0531,37734.0,37731.0,0.01]
[1643984527387,0.0531,37734.0,37731.0,0.005]
[1643984527691,0.0531,37734.0,37723.0,0.04999999]
[1643984527692,0.0531,37734.0,37730.0,0.00018388]
[1643984527888,0.110371,37733.0,37729.0,0.00018388]
[1643984528089,0.0531,37734.0,37726.0,0.11629099]
[1643984528287,0.0531,37734.0,37726.0,0.21629099]
[1643984528687,0.0531,37734.0,37729.0,0.20043274]
[1643984528887,0.0531,37734.0,37729.0,0.25043274]
[1643984529088,0.0531,37734.0,37729.0,0.1]
[1643984529289,0.0531,37734.0,37729.0,0.05]
[1643984529531,0.0531,37734.0,37727.0,0.00018388]
[1643984529731,0.0531,37734.0,37726.0,0.21629099]
[1643984530134,0.0531,37734.0,37729.0,0.19157644]
[1643984530339,0.0531,37734.0,37729.0,0.29157644]
[1643984530534,0.0531,37734.0,37729.0,0.1]
[1643984530733,0.0531,37734.0,37727.0,0.00018388]
[1643984530933,0.0531,37734.0,37726.0,0.39308908]
[1643984531136,0.28169473,37733.0,37726.0,0.1]
[1643984531336,0.066301,37731.0,37725.0,0.00018388]
[1643984531534,0.0531,37730.0,37724.0,0.74020787]
[1643984531735,0.0531,37730.0,37724.0,0.74002399]
[1643984531934,0.10167708,37729.0,37724.0,0.74002399]
[1643984532136,0.29029046,37727.0,37724.0,0.74002399]
[1643984532538,0.066306,37726.0,37724.0,0.74002399]
[1643984532943,0.513471,37725.0,37724.0,0.74002399]
[1643984533138,0.163471,37725.0,37724.0,0.74002399]
[1643984533590,0.0531,37725.0,37724.0,0.74002399]
[1643984533788,0.163471,37725.0,37724.0,0.74002399]
[1643984534186,0.163471,37725.0,37724.0,0.79002399]
[1643984534485,0.0531,37725.0,37724.0,0.79002399]
[1643984534886,0.163471,37725.0,37724.0,0.74002399]
[1643984535089,1.213471,37725.0,37724.0,0.74002399]
[1643984535287,0.263471,37725.0,37724.0,0.34209299]